bitfinex-derivatives/quotes_BTCF0:USTF0_20250212
["timestamp","ask_amount","ask_price","bid_price","bid_amount"]
[1739399393512,0.22129487,98000.0,97994.0,0.01595559]
[1739399393711,0.22129487,98000.0,97995.0,0.01595553]
[1739399393914,0.101,98000.0,97996.0,0.01595553]
[1739399394116,0.102,98000.0,97997.0,0.01595553]
[1739399394316,0.102,98000.0,97987.0,0.3608]
[1739399394317,0.102,98000.0,97999.0,0.3608]
[1739399394613,0.1,98000.0,97999.0,0.40228114]
[1739399394816,0.103,98000.0,97999.0,0.40228114]
[1739399395216,0.1,98000.0,97999.0,0.60635494]
[1739399395404,0.104,98000.0,97999.0,0.60635494]
[1739399395611,0.104,98000.0,97999.0,0.63826118]
[1739399395913,0.1,98000.0,97999.0,0.63826116]
[1739399396116,0.1,98000.0,97999.0,0.43418736]
[1739399396117,0.104,98000.0,97999.0,0.43418736]
[1739399396314,0.104,98000.0,97999.0,0.73418736]
[1739399396516,0.104,98000.0,97999.0,0.74694823]
[1739399396819,0.104,98000.0,97999.0,0.82032081]
[1739399397213,0.104,98000.0,97999.0,0.52032081]
[1739399397520,0.104,98000.0,97999.0,0.82032081]
[1739399398517,0.1,98000.0,97999.0,0.82032081]
[1739399398812,0.1,98000.0,97999.0,0.82332081]
[1739399399017,0.1,98000.0,97999.0,0.79140544]
[1739399399319,0.1,98000.0,97999.0,0.74993325]
[1739399399518,0.1,98000.0,97999.0,0.75950533]
[1739399399715,0.1,98000.0,97999.0,0.73398331]
[1739399400017,0.1,98000.0,97999.0,0.45950577]
[1739399400221,0.1,98000.0,97999.0,0.44674474]
[1739399400415,0.1,98000.0,97999.0,1.49365438]
[1739399400917,0.1,98000.0,97999.0,1.49365332]
[1739399401228,0.1,98000.0,97999.0,1.44918105]
[1739399401412,0.1,98000.0,97999.0,1.43941997]
[1739399401716,0.1,98000.0,97999.0,1.39794851]
[1739399403018,0.1,98000.0,97999.0,1.39494851]
[1739399403320,0.1,98000.0,97999.0,1.03714851]
[1739399403520,0.1,98000.0,97999.0,0.003]
[1739399404121,0.1,98000.0,97997.0,0.18830923]
[1739399404314,0.1,98000.0,97987.0,0.36409108]
[1739399404515,0.22029487,98000.0,97987.0,0.36277108]
[1739399404920,0.22029487,98000.0,97987.0,0.72357108]
[1739399405122,0.3608,97995.0,97987.0,0.36277108]
[1739399405331,0.3578,97995.0,97987.0,0.36277108]
[1739399405914,0.3578,97995.0,97987.0,0.36877108]
[1739399406427,0.3578,97995.0,97987.0,0.006]
[1739399406817,0.3578,97995.0,97966.0,0.56691348]
[1739399406818,0.2040977,97988.0,97966.0,0.36277108]
[1739399407023,0.48109487,97980.0,97966.0,0.36277108]
[1739399407218,0.3608,97968.0,97966.0,0.36277108]
[1739399407725,0.0745,97967.0,97966.0,0.36277108]
[1739399408227,0.0745,97967.0,97966.0,0.36377108]
[1739399408819,0.0755,97967.0,97966.0,0.36377108]
[1739399409420,0.08350329,97967.0,97966.0,0.36377108]
[1739399409737,0.00015312,97976.0,97972.0,0.2041295]
[1739399410626,0.00015312,97976.0,97966.0,0.001]
[1739399410823,0.00015312,97976.0,97965.0,0.3608]
[1739399411023,0.00115312,97976.0,97965.0,0.3608]
[1739399411923,0.00015312,97976.0,97975.0,0.2041238]
[1739399412230,0.00115312,97976.0,97973.0,0.3608]
[1739399413525,0.00115312,97976.0,97969.0,0.36277108]
[1739399413921,0.3608,97971.0,97969.0,0.36277108]
[1739399415125,0.3618,97971.0,97969.0,0.36277108]
[1739399415720,0.36992,97971.0,97969.0,0.36277108]
[1739399416731,0.36992,97971.0,97957.0,0.00015312]
[1739399416926,0.12029487,97970.0,97957.0,0.00015312]
[1739399417628,0.3608,97963.0,97957.0,0.00015312]
[1739399417822,0.3608,97963.0,97943.0,0.72493108]
[1739399417823,0.146,97962.0,97943.0,0.72357108]
[1739399418022,0.12029487,97953.0,97943.0,0.72357108]
[1739399418225,0.0701,97952.0,97943.0,0.72357108]
[1739399418628,0.3608,97945.0,97943.0,0.36277108]
[1739399419526,0.3608,97945.0,97934.0,0.00015312]
[1739399420531,0.12029487,97944.0,97934.0,0.00015312]
[1739399420730,0.12847339,97944.0,97934.0,0.00015312]
[1739399420931,0.3608,97943.0,97934.0,0.00015312]
[1739399422439,0.3618,97943.0,97934.0,0.00015312]
[1739399423424,0.3608,97935.0,97934.0,0.00015312]
[1739399424833,0.3648,97935.0,97934.0,0.00015312]
[1739399425136,0.2041861,97946.0,97934.0,0.00015312]
[1739399425137,0.3608,97988.0,97940.0,0.01]
[1739399425324,0.12029487,98010.0,97999.0,0.2040738]
[1739399425531,0.0078652,98003.0,97999.0,0.2040738]
[1739399425735,0.12029487,98010.0,97999.0,1.7040738]
[1739399425957,0.12029487,98010.0,97999.0,0.2040738]
[1739399425958,0.00802981,98005.0,97999.0,0.2040738]
[1739399426535,0.00802981,98005.0,97996.0,0.3608]
[1739399427634,0.00802981,98005.0,97999.0,0.002]
[1739399427827,0.3040737,98000.0,97996.0,0.3608]
[1739399428248,0.1,98000.0,97996.0,0.3608]
[1739399428432,0.2040777,97998.0,97996.0,0.1294]
[1739399428632,0.102,98000.0,97990.0,0.00015312]
[1739399428832,0.2040905,97991.0,97990.0,0.00015312]
[1739399429028,0.2040993,97987.0,97978.0,0.24345658]
[1739399429934,0.2041048,97985.0,97978.0,0.24345658]
[1739399431038,0.04654,97986.0,97978.0,0.24345658]
[1739399431337,0.005,97985.0,97978.0,0.24345658]
[1739399431844,0.005,97985.0,97973.0,0.36095312]
[1739399432340,0.05154,97986.0,97973.0,0.36095312]
[1739399432643,0.2041031,97985.0,97973.0,0.36095312]
[1739399432941,0.2041089,97983.0,97973.0,0.36095312]
[1739399433639,0.05154,97986.0,97973.0,0.36095312]
[1739399433838,0.005,97985.0,97973.0,0.36095312]
[1739399434146,0.005,97985.0,97920.0,0.04213836]
[1739399434351,0.7216,97921.0,97903.0,0.74929573]
[1739399434537,0.3608,97904.0,97903.0,0.47153796]
[1739399434738,0.3608,97904.0,97903.0,0.48431057]
[1739399434944,0.3608,97904.0,97903.0,0.47153796]
[1739399435540,0.3608,97904.0,97903.0,0.77153796]
[1739399436139,0.0001532,97913.0,97903.0,0.77153796]
[1739399436335,0.3608,97939.0,97912.0,0.3608]
[1739399436534,0.3608,97939.0,97921.0,0.3608]
[1739399436733,0.2602,97939.0,97921.0,0.3608]
[1739399436941,0.3608,97958.0,97938.0,0.3608]
[1739399437244,0.3414,97958.0,97949.0,0.3608]
[1739399437547,0.0001532,97958.0,97949.0,0.3608]
[1739399437737,0.0001532,97958.0,97949.0,0.66863791]
[1739399437942,0.04654,97986.0,97975.0,0.2041217]
[1739399438241,0.04654,97986.0,97985.0,0.3608]
[1739399438437,0.25965803,97986.0,97985.0,0.3608]
[1739399438642,0.21883803,97986.0,97985.0,0.6608]
[1739399440848,0.21883803,97986.0,97985.0,0.6638]
[1739399441145,0.19467326,97986.0,97985.0,0.6638]
[1739399441551,0.19467326,97986.0,97985.0,1.58975135]
[1739399441736,0.19467326,97986.0,97985.0,1.5738]
[1739399442439,0.00816,97987.0,97985.0,0.6638]
[1739399443053,0.00816,97987.0,97985.0,0.3638]
[1739399443551,0.00816,97987.0,97985.0,0.3648]
[1739399443748,0.00816,97987.0,97985.0,0.6648]
[1739399443949,0.00816,97987.0,97985.0,0.3648]
[1739399444145,0.00816,97987.0,97985.0,0.3628]
[1739399444650,0.00816,97987.0,97985.0,0.3638]
[1739399445244,0.00816,97987.0,97985.0,0.3628]
[1739399446644,0.00816,97987.0,97985.0,0.3608]
[1739399446846,0.00816,97987.0,97985.0,0.3628]
[1739399447155,0.03367,97987.0,97985.0,0.3628]
[1739399447949,0.03367,97987.0,97985.0,0.3618]
[1739399449851,0.03367,97987.0,97985.0,0.3608]
[1739399450056,0.03367,97987.0,97985.0,0.3618]
[1739399451348,0.02233341,97987.0,97985.0,0.3618]
[1739399452750,0.03049341,97987.0,97985.0,0.3618]
[1739399452952,0.03049341,97987.0,97985.0,0.5659022]
[1739399453561,0.3608,98017.0,97986.0,0.02871619]
[1739399453760,0.3608,98017.0,97999.0,0.5648738]
[1739399453965,0.1438,98030.0,97999.0,1.48763451]
[1739399454455,0.1438,98030.0,97999.0,1.58356071]
[1739399454764,0.00015311,98024.0,98000.0,0.01276071]
[1739399455056,0.3608,98023.0,98005.0,0.00015311]
[1739399455258,0.3608,98023.0,98014.0,0.2040423]
[1739399455857,0.3608,98023.0,98016.0,0.204038]
[1739399457562,0.3668,98023.0,98016.0,0.205038]
[1739399457765,0.3668,98023.0,98018.0,0.2040325]
[1739399458264,0.00816,98022.0,98018.0,0.2040325]
[1739399459866,0.00816,98022.0,98018.0,0.2050325]
[1739399460057,0.00816,98022.0,98021.0,0.204028]
[1739399460462,0.01416,98022.0,98021.0,0.204028]
[1739399461469,0.01516,98022.0,98021.0,0.205028]
[1739399461965,0.01516,98022.0,98021.0,0.20498389]
[1739399463562,0.37596,98022.0,98021.0,0.20498389]
[1739399466068,0.01516,98022.0,98021.0,0.22093327]
[1739399466573,0.01516,98022.0,98021.0,0.22093325]
[1739399467273,0.01516,98022.0,98021.0,0.22093367]
[1739399467771,0.01516,98022.0,98021.0,0.20498389]
[1739399467973,1e-08,98024.0,98021.0,0.31694962]
[1739399468161,1e-08,98024.0,98023.0,0.5648238]
[1739399468360,0.0408,98027.0,98023.0,0.5648238]
[1739399468361,0.0408,98027.0,98026.0,0.2040176]
[1739399468558,0.0408,98027.0,98026.0,1.16824386]
[1739399468769,0.2039756,98047.0,98035.0,0.2039982]
[1739399469069,0.2255756,98051.0,98038.0,0.2471]
[1739399469372,0.217105,98042.0,98035.0,0.20415163]
[1739399469767,0.2039896,98040.0,98035.0,0.00015303]
[1739399469968,0.1419,98039.0,98035.0,0.00015303]
[1739399470274,0.1419,98039.0,98038.0,0.001]
[1739399470578,0.1419,98039.0,98035.0,0.00015303]
[1739399470766,0.1419,98039.0,98035.0,0.00115303]
[1739399471672,0.00816,98038.0,98035.0,0.00115303]
[1739399472374,0.072,98037.0,98035.0,0.00115303]
[1739399472965,0.072,98037.0,98035.0,0.00015303]
[1739399473774,0.078,98037.0,98035.0,0.00115303]
[1739399476269,0.078,98037.0,98024.0,0.3608]
[1739399476468,0.3608,98033.0,98024.0,0.3608]
[1739399476669,0.3608,98025.0,98023.0,0.0819783]
[1739399476970,0.2040373,98017.0,98015.0,0.3639531]
[1739399477167,0.5648373,98017.0,98015.0,0.3639531]
[1739399477378,0.5648373,98017.0,98015.0,1e-08]
[1739399478172,0.2040465,98012.0,98011.0,0.30404467]
[1739399478771,0.48127848,98025.0,98011.0,0.30404467]
[1739399478772,0.00052001,98025.0,98011.0,0.30404467]
[1739399478971,0.00015303,98026.0,98017.0,0.3608]
[1739399479174,0.00015303,98026.0,98025.0,0.3608]
[1739399479374,0.36095303,98026.0,97961.0,0.5727]
[1739399479575,0.11995847,98000.0,97971.0,0.1426]
[1739399479784,0.3608,97987.0,97971.0,0.1426]
[1739399480681,0.3608,97987.0,97977.0,0.00015303]
[1739399481181,0.3608,97987.0,97986.0,0.42613061]
[1739399484876,0.00816,97988.0,97987.0,0.2040985]
[1739399485675,0.00816,97988.0,97987.0,0.6340985]
[1739399486079,0.00816,97988.0,97987.0,0.2040985]
[1739399486676,0.00816,97988.0,97987.0,0.22005242]
[1739399487480,0.00816,97988.0,97987.0,0.23900553]
[1739399487790,0.00816,97988.0,97987.0,0.23900477]
[1739399489781,0.00816,97988.0,97987.0,0.23900467]
[1739399490587,0.00816,97988.0,97987.0,0.22005161]
[1739399490787,0.00816,97988.0,97987.0,0.22305161]
[1739399491176,0.00816,97988.0,97987.0,0.22005161]
[1739399491391,0.00816,97988.0,97987.0,0.22305161]
[1739399491783,0.00816,97988.0,97987.0,0.23900455]
[1739399492786,0.00816,97988.0,97987.0,0.23900458]
[1739399493087,0.00816,97988.0,97987.0,0.22305161]
[1739399493290,0.00816,97988.0,97987.0,0.22005161]
[1739399493506,0.00816,97988.0,97987.0,0.22305161]
[1739399494692,0.00816,97988.0,97987.0,0.25176546]
[1739399495191,0.00816,97988.0,97987.0,0.22305161]
[1739399495789,0.00816,97988.0,97987.0,0.22005161]
[1739399495994,0.00816,97988.0,97987.0,0.18223161]
[1739399496687,0.00816,97988.0,97987.0,0.19818378]
[1739399496886,0.00816,97988.0,97987.0,0.19518378]
[1739399497091,0.00816,97988.0,97987.0,0.20018378]
[1739399497292,0.00816,97988.0,97987.0,0.21294539]
[1739399497492,0.00816,97988.0,97987.0,0.21094539]
[1739399497695,0.00816,97988.0,97987.0,0.1949933]
[1739399498090,0.00816,97988.0,97987.0,0.19499326]
[1739399498282,0.00816,97988.0,97987.0,0.21094533]
[1739399498790,0.01632,97988.0,97987.0,0.19499326]
[1739399499090,0.01632,97988.0,97987.0,0.19699326]
[1739399499593,0.01632,97988.0,97987.0,0.19199326]
[1739399499795,0.00268717,97988.0,97987.0,0.21094536]
[1739399500097,0.00268717,97988.0,97987.0,0.2109454]
[1739399500292,0.00767717,97988.0,97987.0,0.2129454]
[1739399501799,0.00767717,97988.0,97987.0,0.2079454]
[1739399501984,0.00767717,97988.0,97987.0,0.2109454]
[1739399502184,0.00767717,97988.0,97987.0,0.23646922]
[1739399502383,0.00767717,97988.0,97987.0,0.23346922]
[1739399502588,0.00767717,97988.0,97987.0,0.23746922]
[1739399502795,0.00767717,97988.0,97987.0,0.20875543]
[1739399502994,0.00767717,97988.0,97987.0,0.20775543]
[1739399503393,0.00767717,97988.0,97987.0,0.21094834]
[1739399504901,0.00767717,97988.0,97987.0,0.23647233]
[1739399505091,0.00767717,97988.0,97987.0,0.23347233]
[1739399505291,0.00767717,97988.0,97987.0,0.23547233]
[1739399505899,0.00767717,97988.0,97987.0,0.23647233]
[1739399506390,0.00767717,97988.0,97987.0,0.21951965]
[1739399506589,0.00767717,97988.0,97987.0,0.23547211]
[1739399508702,0.00767717,97988.0,97987.0,0.1919931]
[1739399508895,0.00767717,97988.0,97987.0,0.23646937]
[1739399509299,0.00767717,97988.0,97987.0,0.23346937]
[1739399509502,0.00767717,97988.0,97987.0,0.23546937]
[1739399510003,0.00767717,97988.0,97987.0,0.23646937]
[1739399510596,0.00767717,97988.0,97987.0,0.23646964]
[1739399512102,0.00767717,97988.0,97987.0,0.23346964]
[1739399512300,0.00767717,97988.0,97987.0,0.23646964]
[1739399512706,0.00767717,97988.0,97987.0,0.22370723]
[1739399512898,0.00767717,97988.0,97987.0,0.23646961]
[1739399513100,0.00767717,97988.0,97987.0,0.22051714]
[1739399513399,0.00767717,97988.0,97987.0,0.24923247]
[1739399513595,0.00767717,97988.0,97987.0,0.26199484]
[1739399514204,0.00767717,97988.0,97987.0,0.25899484]
[1739399514400,0.00767717,97988.0,97987.0,0.22051714]
[1739399514703,0.00767717,97988.0,97987.0,0.26199492]
[1739399514899,0.00767717,97988.0,97987.0,0.24504193]
[1739399515305,0.00767717,97988.0,97987.0,0.2482325]
[1739399515996,0.00767717,97988.0,97987.0,0.2492325]
[1739399516602,0.00767717,97988.0,97987.0,0.22370774]
[1739399516800,0.00767717,97988.0,97987.0,0.261993]
[1739399517104,0.00767717,97988.0,97987.0,0.24604061]
[1739399517304,0.00767717,97988.0,97987.0,0.22051679]
[1739399517704,0.00767717,97988.0,97987.0,0.20775477]
[1739399518001,0.00767717,97988.0,97987.0,0.26099246]
[1739399518202,0.00767717,97988.0,97987.0,0.313315]
[1739399518405,0.01583717,97988.0,97987.0,0.313315]
[1739399519001,0.01583717,97988.0,97987.0,0.314315]
[1739399519898,0.01315,97988.0,97987.0,0.314315]
[1739399520409,0.01315,97988.0,97987.0,0.34621892]
[1739399520606,0.01315,97988.0,97987.0,0.34521892]
[1739399521210,0.01315,97988.0,97987.0,0.34521782]
[1739399523002,0.01315,97988.0,97987.0,0.33245618]
[1739399523202,0.01315,97988.0,97987.0,0.31331378]
[1739399524108,0.01315,97988.0,97987.0,0.34321761]
[1739399524310,0.01315,97988.0,97987.0,0.34521761]
[1739399526313,0.01315,97988.0,97987.0,0.31331369]
[1739399527215,0.01315,97988.0,97987.0,0.28140986]
[1739399527616,0.00015303,97996.0,97995.0,0.2040624]
[1739399527818,0.00015303,97996.0,97995.0,0.63951749]
[1739399528404,3e-08,97996.0,97995.0,0.93951717]
[1739399528609,3e-08,97996.0,97995.0,0.97250206]
[1739399528910,0.1377,98031.0,98030.0,0.2039895]
[1739399529103,0.0686,98031.0,98030.0,0.2039895]
[1739399529309,0.3608,98043.0,98030.0,0.2039895]
[1739399529610,0.3608,98043.0,98023.0,0.3608]
[1739399529611,0.3608,98043.0,98031.0,0.37674744]
[1739399529814,0.3608,98043.0,98023.0,0.3608]
[1739399530113,0.00815,98042.0,98027.0,0.00015303]
[1739399530313,0.00815,98042.0,98040.0,0.2039668]
[1739399530712,0.04079,98041.0,98040.0,0.2039668]
[1739399531713,0.04079,98041.0,98040.0,0.2049668]
[1739399532215,0.04579,98041.0,98040.0,0.2049668]
[1739399538510,0.11995847,98060.0,98040.0,0.3618]
[1739399538714,0.21995847,98100.0,98059.0,0.3608]
[1739399538715,0.10712576,98100.0,98059.0,0.3608]
[1739399539026,0.152,98099.0,98093.0,0.3608]
[1739399539311,0.2038545,98095.0,98093.0,0.3608]
[1739399539719,0.30469,98095.0,98077.0,0.3608]
[1739399540022,0.2038897,98078.0,98077.0,0.3608]
[1739399540316,0.2038897,98078.0,98077.0,0.2281]
[1739399540715,0.2038897,98078.0,98077.0,0.0954]
[1739399540904,0.2038897,98078.0,98076.0,0.00015295]
[1739399540905,0.2538897,98078.0,98076.0,0.00015295]
[1739399541315,0.20391,98069.0,98065.0,0.36232949]
[1739399541615,0.2039125,98068.0,98065.0,0.36232949]
[1739399543110,0.2039125,98068.0,98065.0,0.3608]
[1739399543415,0.00015295,98076.0,98065.0,0.3608]
[1739399543816,0.2039133,98067.0,98065.0,0.3608]
[1739399544502,0.0827,98066.0,98065.0,0.3608]
[1739399546512,0.00727616,98066.0,98065.0,0.3608]
[1739399547311,0.00727616,98066.0,98057.0,0.00015295]
[1739399547312,0.203929,98060.0,98057.0,0.00015295]
[1739399547514,0.2039313,98058.0,98057.0,0.00015295]
[1739399548714,0.21118227,98058.0,98057.0,0.00015295]
[1739399556125,0.21933227,98058.0,98057.0,0.00015295]
[1739399556328,0.00815,98058.0,98057.0,0.00015295]
[1739399556512,0.00815,98058.0,98057.0,0.36095295]
[1739399557613,0.00815,98058.0,98057.0,0.37689724]
[1739399558230,0.00815,98058.0,98057.0,0.37689679]
[1739399560218,0.00815,98058.0,98057.0,0.36095295]
[1739399560423,0.00815,98058.0,98057.0,0.37689688]
[1739399560817,0.00815,98058.0,98057.0,0.37689726]
[1739399561322,0.00815,98058.0,98057.0,0.40240752]
[1739399561821,0.00815,98058.0,98057.0,0.37689726]
[1739399562027,0.00815,98058.0,98057.0,0.4024076]
[1739399562427,0.00815,98058.0,98057.0,0.37689726]
[1739399563719,0.00715538,98069.0,98057.0,0.37689726]
[1739399563925,0.2038983,98074.0,98065.0,0.3608]
[1739399564125,0.2038983,98074.0,98066.0,0.01594431]
[1739399564328,0.2038983,98074.0,98065.0,0.3608]
[1739399564329,0.00729697,98074.0,98067.0,0.01594323]
[1739399564530,0.2039147,98066.0,98065.0,0.3608]
[1739399565031,0.2039313,98058.0,98057.0,0.00015295]
[1739399565328,0.00752,98067.0,98057.0,0.00015295]
[1739399565329,0.00752,98067.0,98057.0,0.37689922]
[1739399565532,0.00752,98067.0,98058.0,0.01594627]
[1739399565533,0.2039192,98064.0,98058.0,0.01594627]
[1739399565836,0.00752,98067.0,98059.0,0.01594627]
[1739399566033,0.2039234,98062.0,98060.0,0.01594627]
[1739399566333,0.2039313,98058.0,98057.0,0.00015295]
[1739399567423,0.3608,98058.0,98026.0,0.3608]
[1739399567624,0.2039542,98047.0,98046.0,0.30400961]
[1739399568728,0.5647542,98047.0,98046.0,0.30400961]
[1739399570020,0.5694642,98047.0,98046.0,0.30400961]
[1739399571032,0.5694642,98047.0,98043.0,0.18243421]
[1739399571033,0.36551,98047.0,98043.0,0.18243421]
[1739399571531,0.2039605,98044.0,98043.0,0.18243421]
[1739399574336,0.36551,98047.0,98040.0,0.001]
[1739399574537,0.2039667,98041.0,98040.0,0.001]
[1739399576057,0.2039709,98039.0,98038.0,0.14164421]
[1739399576533,0.5647709,98039.0,98038.0,0.14164421]
[1739399576744,0.2039854,98032.0,98031.0,0.24324561]
[1739399577443,0.2539854,98032.0,98031.0,0.24324561]
[1739399577629,0.05,98032.0,98026.0,0.60404561]
[1739399577825,0.2039958,98027.0,98026.0,0.60404561]
[1739399578638,0.2039958,98027.0,98026.0,0.24324561]
[1739399579335,0.2040041,98023.0,98022.0,0.00015295]
[1739399580541,0.3163,98026.0,98012.0,0.3608]
[1739399580743,0.48075847,98022.0,98011.0,0.36475682]
[1739399581236,0.00753,98021.0,98011.0,0.36475682]
[1739399581635,0.2040266,98013.0,98011.0,0.36475682]
[1739399582048,0.2040266,98013.0,98007.0,0.3608]
[1739399583534,0.2040476,98003.0,98000.0,0.2127]
[1739399583731,0.2040472,98003.0,98000.0,0.2127]
[1739399583936,0.11995847,98010.0,98000.0,0.2127]
[1739399584943,0.20406,97997.0,97992.0,0.36475682]
[1739399585142,0.20406,97997.0,97986.0,0.3608]
[1739399585535,0.20979126,97997.0,97986.0,0.3608]
[1739399586137,0.2040792,97987.0,97986.0,0.3608]
[1739399587046,0.2040937,97980.0,97979.0,0.33865544]
[1739399587236,0.2041269,97965.0,97958.0,0.4646]
[1739399587839,0.2021269,97965.0,97958.0,0.4646]
[1739399588439,0.2021269,97965.0,97963.0,0.42613061]
[1739399588843,0.2021269,97965.0,97958.0,0.4646]
[1739399588844,0.3608,97971.0,97956.0,0.1067]
[1739399589154,0.2041392,97959.0,97956.0,0.1067]
[1739399589340,0.2041392,97959.0,97944.0,0.2112]
[1739399589535,0.204152,97953.0,97944.0,0.1066]
[1739399590046,0.204152,97953.0,97935.0,0.2177]
[1739399590251,0.11995847,97945.0,97935.0,0.2177]
[1739399590442,0.11995847,97945.0,97935.0,0.1113]
[1739399591551,0.11995847,97945.0,97936.0,0.01596477]
[1739399591552,0.00564931,97945.0,97936.0,0.01596477]
[1739399591744,0.1061,97947.0,97937.0,0.01596477]
[1739399591945,0.1061,97947.0,97938.0,0.01596477]
[1739399592254,0.001,97945.0,97939.0,0.04150806]
[1739399592451,0.001,97945.0,97940.0,0.01596477]
[1739399592653,0.001,97945.0,97941.0,0.01596475]
[1739399592848,0.3102645,97947.0,97942.0,0.01596475]
[1739399593048,0.31612988,97947.0,97943.0,0.01596475]
[1739399593247,0.31612988,97947.0,97937.0,0.003]
[1739399593248,0.2041667,97945.0,97944.0,0.04150928]
[1739399593456,0.2041667,97945.0,97944.0,0.04150908]
[1739399593647,0.11196538,97947.0,97944.0,0.01596503]
[1739399593848,0.11196538,97947.0,97937.0,0.003]
[1739399594153,0.2041733,97942.0,97938.0,0.04150971]
[1739399594352,0.2041771,97940.0,97939.0,0.04150971]
[1739399594541,0.2041771,97940.0,97939.0,0.01696523]
[1739399594853,0.2041771,97940.0,97939.0,0.001]
[1739399595043,0.2041771,97940.0,97937.0,0.001]
[1739399595351,0.2041813,97938.0,97937.0,0.001]
[1739399595747,0.2041813,97938.0,97929.0,0.1066]
[1739399595951,0.3608,97932.0,97929.0,0.1066]
[1739399596152,0.2041813,97938.0,97929.0,0.1066]
[1739399596350,0.2041813,97938.0,97937.0,0.001]
[1739399597846,0.2091813,97938.0,97929.0,0.1066]
[1739399598242,0.2041813,97938.0,97929.0,0.1066]
[1739399598446,0.007,97938.0,97936.0,0.3608]
[1739399598649,0.007,97938.0,97929.0,0.4674]
[1739399599155,0.005,97938.0,97929.0,0.4674]
[1739399600254,0.05,97946.0,97929.0,0.4674]
[1739399600255,0.11995847,97939.0,97929.0,0.4674]
[1739399600854,0.007,97938.0,97929.0,0.4674]
[1739399601046,0.3678,97938.0,97925.0,0.1045]
[1739399601247,0.2041992,97930.0,97925.0,0.1045]
[1739399601460,0.04084,97937.0,97924.0,0.00153166]
[1739399601955,0.2042076,97926.0,97924.0,0.00153166]
[1739399602154,0.204223,97918.0,97917.0,0.30197218]
[1739399603554,0.3226074,97926.0,97915.0,0.3608]
[1739399604557,0.3246074,97926.0,97915.0,0.3608]
[1739399605162,0.3226074,97926.0,97915.0,0.3608]
[1739399606275,0.2042093,97925.0,97915.0,0.3608]
[1739399606465,0.2450493,97925.0,97915.0,0.3608]
[1739399606670,0.04084,97925.0,97915.0,0.3608]
[1739399606861,0.2286,97925.0,97915.0,0.3608]
[1739399607871,0.433809,97925.0,97915.0,0.3608]
[1739399608070,0.246049,97925.0,97915.0,0.3608]
[1739399608271,0.04184,97925.0,97915.0,0.3608]
[1739399608472,0.2042159,97922.0,97915.0,0.3608]
[1739399608768,0.204226,97917.0,97915.0,0.3608]
[1739399610268,0.205226,97917.0,97915.0,0.3608]
[1739399610575,0.00755,97916.0,97915.0,0.3608]
[1739399611370,0.204226,97917.0,97915.0,0.3608]
[1739399611973,0.001,97916.0,97915.0,0.3608]
[1739399612176,0.001,97916.0,97915.0,0.82776683]
[1739399613476,0.204226,97917.0,97915.0,0.82776683]
[1739399614578,0.00472,97916.0,97915.0,0.82776683]
[1739399616575,0.2042586,97901.0,97900.0,0.1]
[1739399617379,0.20999325,97901.0,97900.0,0.1]
[1739399618083,0.20999325,97901.0,97900.0,0.104]
[1739399618977,0.20999325,97901.0,97900.0,1.34235743]
[1739399619372,0.04085,97905.0,97900.0,1.34235743]
[1739399619583,0.2042586,97901.0,97900.0,1.34235743]
[1739399619882,0.5650586,97901.0,97900.0,1.30221062]
[1739399620279,0.57083935,97901.0,97900.0,1.30221062]
[1739399620983,0.57083935,97901.0,97900.0,1.29175055]
[1739399621179,0.57083935,97901.0,97900.0,0.62185844]
[1739399621685,0.2032774,97893.0,97891.0,0.37297595]
[1739399623477,0.3608,97892.0,97891.0,0.37597595]
[1739399623779,0.2042941,97884.0,97883.0,0.48586356]
[1739399625777,0.5650941,97884.0,97883.0,0.48586356]
[1739399625974,0.2042985,97882.0,97880.0,0.30510848]
[1739399626686,0.1087,97881.0,97880.0,0.30510848]
[1739399626879,0.1087,97881.0,97870.0,0.36613018]
[1739399626880,0.2043131,97875.0,97870.0,0.36613018]
[1739399627076,0.11995847,97880.0,97870.0,0.36613018]
[1739399627580,0.2043169,97874.0,97870.0,0.36613018]
[1739399627784,0.11995847,97880.0,97870.0,0.36613018]
[1739399627785,0.2043196,97872.0,97870.0,0.36613018]
[1739399629785,0.3608,97875.0,97854.0,0.2265]
[1739399630084,0.0510778,97876.0,97854.0,0.2265]
[1739399630085,0.2043547,97855.0,97854.0,0.2265]
[1739399630281,0.204361,97852.0,97844.0,0.3608]
[1739399630486,0.3608,97859.0,97844.0,0.3608]
[1739399630693,0.204371,97848.0,97844.0,0.3608]
[1739399631381,0.21024608,97848.0,97844.0,0.3608]
[1739399631790,0.00587508,97848.0,97842.0,0.36613018]
[1739399631981,0.2043779,97844.0,97842.0,0.36613018]
[1739399632183,0.2043619,97852.0,97842.0,0.36613018]
[1739399632378,0.11995847,97854.0,97842.0,0.36613018]
[1739399633476,0.3608,97850.0,97842.0,0.36613018]
[1739399633676,0.2043693,97848.0,97842.0,0.36613018]
[1739399634079,0.04088,97847.0,97842.0,0.36613018]
[1739399635381,0.2043785,97844.0,97835.0,0.3608]
[1739399635795,0.11995847,97845.0,97835.0,0.3608]
[1739399636875,0.11995847,97845.0,97836.0,0.041548]
[1739399637081,0.11995847,97845.0,97835.0,0.3608]
[1739399637082,0.11995847,97845.0,97843.0,0.3608]
[1739399637279,0.04388,97847.0,97844.0,0.12898]
[1739399637483,0.04388,97847.0,97845.0,0.01598]
[1739399637787,0.04388,97847.0,97846.0,0.01598]
[1739399637993,0.04388,97847.0,97846.0,0.07350963]
[1739399638291,0.04088,97847.0,97844.0,0.113]
[1739399638789,0.04088,97847.0,97845.0,0.07350593]
[1739399638986,0.04088,97847.0,97845.0,0.04154683]
[1739399639192,0.04088,97847.0,97846.0,0.04154683]
[1739399639487,0.04088,97847.0,97844.0,0.113]
[1739399639990,0.04488,97847.0,97844.0,0.113]
[1739399642091,0.004,97847.0,97844.0,0.113]
[1739399642689,0.00472,97846.0,97844.0,0.113]
[1739399643285,0.04088,97845.0,97844.0,0.113]
[1739399645097,0.04488,97845.0,97844.0,0.113]
[1739399645895,0.04488,97845.0,97826.0,0.24325688]
[1739399646094,0.23991694,97839.0,97830.0,0.1127]
[1739399646392,0.23991694,97839.0,97825.0,0.3608]
[1739399646393,0.2044048,97831.0,97825.0,0.3608]
[1739399646595,0.3608,97826.0,97808.0,0.24325688]
[1739399646793,0.3608,97814.0,97808.0,0.24325688]